bitfinex/quotes_BTCUSD_20260215
["timestamp","ask_amount","ask_price","bid_price","bid_amount"]
[1771184567303,0.07094882,68336.0,68321.0,0.26583387]
[1771184567916,0.07094882,68336.0,68320.0,0.51483319]
[1771184567917,0.07084199,68349.0,68326.0,0.51483319]
[1771184568124,0.07084199,68347.0,68331.0,0.26583387]
[1771184569068,0.0004,68335.0,68326.0,0.00012905]
[1771184569260,0.0004,68335.0,68326.0,0.26596292]
[1771184569420,0.07084199,68340.0,68326.0,0.00012905]
[1771184569619,0.28852,68348.0,68326.0,0.00012905]
[1771184569620,0.07084199,68341.0,68327.0,0.26583387]
[1771184570282,0.07084199,68339.0,68327.0,0.26583387]
[1771184570479,0.07084199,68339.0,68326.0,0.00012905]
[1771184570680,0.07084199,68339.0,68326.0,0.26596292]
[1771184570884,0.0004,68342.0,68330.0,0.26583387]
[1771184571653,0.0004,68342.0,68326.0,0.00012905]
[1771184571654,0.03542099,68339.0,68326.0,0.00012905]
[1771184572054,0.07316649,68338.0,68326.0,0.00012905]
[1771184572250,0.03542099,68337.0,68326.0,0.00012905]
[1771184572655,0.07316701,68337.0,68326.0,0.00012905]
[1771184572872,0.03542099,68336.0,68326.0,0.00012905]
[1771184576849,0.26902694,68334.0,68316.0,0.0002]
[1771184576981,0.03542099,68331.0,68317.0,0.00030683]
[1771184577836,0.07317433,68330.0,68317.0,0.00030683]
[1771184578044,0.03542099,68329.0,68323.0,0.0002]
[1771184578423,0.03542099,68335.0,68323.0,0.0002]
[1771184578621,0.03542099,68334.0,68323.0,0.0002]
[1771184578822,0.03542099,68333.0,68323.0,0.0002]
[1771184580123,0.03542099,68332.0,68323.0,0.0002]
[1771184580552,0.03542099,68331.0,68317.0,0.00030683]
[1771184580729,0.29307252,68336.0,68317.0,0.00030683]
[1771184580730,0.03542099,68327.0,68317.0,0.00030683]
[1771184580930,0.03542099,68326.0,68317.0,0.00030683]
[1771184582139,0.03542099,68324.0,68316.0,0.0002]
[1771184583354,0.03542099,68324.0,68306.0,0.26603387]
[1771184583355,0.51483319,68320.0,68306.0,0.25839885]
[1771184583487,0.29096,68319.0,68306.0,0.25882909]
[1771184583685,0.32642099,68321.0,68306.0,0.25882909]
[1771184584221,0.55025418,68320.0,68306.0,0.25882909]
[1771184584929,0.03542099,68320.0,68306.0,0.25882909]
[1771184586508,0.51483319,68330.0,68306.0,0.25882909]
[1771184586883,0.32650099,68329.0,68311.0,0.26583387]
[1771184587099,0.03542099,68329.0,68311.0,0.26583387]
[1771184587312,0.32650099,68329.0,68311.0,0.26583387]
[1771184587662,0.29108,68329.0,68311.0,0.26583387]
[1771184587865,0.03542099,68328.0,68311.0,0.26583387]
[1771184588270,0.51483319,68321.0,68306.0,0.26646411]
[1771184588471,0.03542099,68320.0,68306.0,0.26646411]
[1771184589682,0.03542099,68329.0,68307.0,0.26583387]
[1771184589898,0.29112,68325.0,68307.0,0.26583387]
[1771184590321,0.51483319,68320.0,68307.0,0.26583387]
[1771184590730,0.03542099,68324.0,68307.0,0.26583387]
[1771184591264,0.29112,68325.0,68307.0,0.26583387]
[1771184591459,0.29116,68328.0,68307.0,0.26583387]
[1771184591795,0.55025418,68330.0,68310.0,0.51483319]
[1771184591999,0.84141418,68330.0,68311.0,0.26583387]
[1771184592446,0.03542099,68329.0,68311.0,0.26583387]
[1771184594071,0.51483319,68321.0,68307.0,0.26336065]
[1771184594292,0.03542099,68323.0,68307.0,0.26336065]
[1771184595190,0.80639319,68330.0,68307.0,0.26319949]
[1771184595366,0.03542099,68329.0,68307.0,0.26319949]
[1771184595880,0.03542099,68329.0,68310.0,0.51483319]
[1771184596079,0.03542099,68329.0,68311.0,0.26336065]
[1771184599527,0.0004,68336.0,68320.0,0.26336065]
[1771184599740,0.0004,68342.0,68322.0,0.26336065]
[1771184600010,0.51483319,68340.0,68322.0,0.26336065]
[1771184602106,0.0004,68342.0,68330.0,0.51483319]
[1771184602348,0.0004,68342.0,68331.0,0.26336065]
[1771184603319,0.0004,68340.0,68331.0,0.26336065]
[1771184604043,0.0004,68340.0,68322.0,0.26336065]
[1771184604276,0.51523319,68340.0,68322.0,0.26336065]
[1771184604502,0.03542099,68339.0,68322.0,0.26336065]
[1771184604751,0.51483319,68332.0,68322.0,0.26336065]
[1771184604983,0.51483319,68332.0,68321.0,0.41292]
[1771184605210,0.03542099,68333.0,68321.0,0.41292]
[1771184606770,0.01990745,68333.0,68321.0,0.41292]
[1771184610110,0.01990745,68333.0,68321.0,0.41312]
[1771184612473,0.5791821,68331.0,68314.0,0.0002]
[1771184612708,0.02831922,68329.0,68314.0,0.0002]
[1771184612949,0.02831922,68326.0,68314.0,0.0002]
[1771184613196,0.28288156,68323.0,68314.0,0.0002]
[1771184613418,0.02831922,68322.0,68314.0,0.0002]
[1771184620725,0.3864,68328.0,68314.0,0.0002]
[1771184620928,0.02831922,68327.0,68314.0,0.0002]
[1771184621808,0.02831922,68327.0,68314.0,0.26356065]
[1771184622008,0.29468,68326.0,68314.0,0.26356065]
[1771184624833,0.02831922,68326.0,68314.0,0.0002]
[1771184625011,0.2948,68325.0,68314.0,0.0002]
[1771184625392,0.02831922,68324.0,68314.0,0.0002]
[1771184629002,0.02831922,68323.0,68307.0,0.0002]
[1771184629198,0.51502467,68320.0,68307.0,0.0002]
[1771184629410,0.51502467,68320.0,68307.0,0.28397011]
[1771184630468,0.0004,68340.0,68307.0,0.28397011]
[1771184630682,0.02831922,68338.0,68321.0,0.28377011]
[1771184630886,0.02831922,68338.0,68307.0,0.00063024]
[1771184630887,0.54334389,68331.0,68317.0,0.31852]
[1771184631092,0.51502467,68327.0,68308.0,0.28377011]
[1771184631289,0.02831922,68327.0,68308.0,0.28377011]
[1771184631626,0.02831922,68327.0,68308.0,0.28401041]
[1771184632701,0.0004,68340.0,68330.0,0.51502467]
[1771184632846,0.0004,68340.0,68330.0,0.02168076]
[1771184632847,0.51542467,68340.0,68330.0,0.02168076]
[1771184633732,0.02458805,68338.0,68322.0,0.3186]
[1771184633965,0.51502467,68332.0,68322.0,0.3186]
[1771184635863,0.02458805,68333.0,68322.0,0.3186]
[1771184636468,0.02458805,68333.0,68319.0,9.48e-05]
[1771184636469,0.57927297,68332.0,68319.0,9.48e-05]
[1771184636699,0.02458805,68331.0,68319.0,9.48e-05]
[1771184640960,0.02458805,68328.0,68319.0,9.48e-05]
[1771184641115,0.02458805,68326.0,68319.0,9.48e-05]
[1771184644685,0.29684,68330.0,68319.0,9.48e-05]
[1771184644984,0.02458805,68329.0,68319.0,9.48e-05]
[1771184647249,0.02458805,68327.0,68318.0,0.09376]
[1771184647437,0.02458805,68325.0,68318.0,0.09376]
[1771184647638,0.02458805,68325.0,68312.0,0.31876]
[1771184647877,0.02458805,68325.0,68312.0,0.31887325]
[1771184648083,0.87611297,68330.0,68311.0,0.0001455]
[1771184648084,0.57927297,68322.0,68311.0,0.0001455]
[1771184648416,0.02458805,68319.0,68311.0,0.0001455]
[1771184652448,0.29272413,68324.0,68311.0,0.0001455]
[1771184652449,0.02498805,68336.0,68315.0,0.02311185]
[1771184652652,0.00046926,68329.0,68316.0,0.02311185]
[1771184652853,0.00046926,68329.0,68317.0,0.02311185]
[1771184656441,0.00046926,68329.0,68317.0,0.02295063]
[1771184657038,0.25992296,68328.0,68311.0,0.3182255]
[1771184657242,0.02269571,68325.0,68311.0,0.0001455]
[1771184657445,0.2992,68327.0,68311.0,0.0001455]
[1771184657446,0.02269571,68323.0,68311.0,0.0001455]
[1771184658244,0.02269571,68323.0,68317.0,0.0002]
[1771184660899,0.02269571,68320.0,68311.0,0.0001455]
[1771184661114,0.02269571,68319.0,68311.0,0.0001455]
[1771184661722,0.07317993,68325.0,68311.0,0.0001455]
[1771184661928,0.02269571,68324.0,68311.0,0.0001455]
[1771184662147,0.25992296,68324.0,68311.0,0.0001455]
[1771184662353,0.02269571,68323.0,68311.0,0.0001455]
[1771184662559,0.02269571,68322.0,68311.0,0.0001455]
[1771184663790,0.25992296,68321.0,68311.0,0.0001455]
[1771184664000,0.02269571,68320.0,68311.0,0.0001455]
[1771184664975,0.0731851,68320.0,68311.0,0.0001455]
[1771184665143,0.02269571,68319.0,68311.0,0.0001455]
[1771184666676,0.02269571,68319.0,68311.0,0.0003455]
[1771184668132,0.02269571,68319.0,68304.0,0.0002]
[1771184668133,0.02269571,68315.0,68296.0,0.0242763]
[1771184668334,0.02269571,68313.0,68296.0,0.0242763]
[1771184670099,0.02269571,68313.0,68297.0,0.0242763]
[1771184671259,0.0731955,68311.0,68297.0,0.0242763]
[1771184671495,0.09589012,68312.0,68297.0,0.0242763]
[1771184671860,0.29275985,68316.0,68295.0,0.0001455]
[1771184671861,0.07319679,68309.0,68295.0,0.0001455]
[1771184672157,0.02269571,68306.0,68295.0,0.0001455]
[1771184672386,0.02269571,68305.0,68295.0,0.0001455]
[1771184673412,0.02279641,68305.0,68295.0,0.0001455]
[1771184673646,0.02269571,68303.0,68295.0,0.0001455]
[1771184678542,0.0001007,68305.0,68295.0,0.0001455]
[1771184680094,0.0001007,68305.0,68295.0,0.0244218]
[1771184682665,0.0001007,68305.0,68295.0,0.0246218]
[1771184683488,0.24502376,68304.0,68294.0,0.002]
[1771184683692,0.24502376,68304.0,68288.0,0.02931371]
[1771184683693,0.24502376,68303.0,68288.0,0.0062]
[1771184683920,0.02321515,68296.0,68284.0,0.0001312]
[1771184684123,0.51531382,68300.0,68276.0,0.0001529]
[1771184684124,0.24806879,68291.0,68276.0,0.0001529]
[1771184684336,0.02396529,68283.0,68276.0,0.0001529]
[1771184684501,0.02396529,68284.0,68270.0,0.002]
[1771184684698,0.0938,68295.0,68250.0,0.0001529]
[1771184684699,0.02396529,68270.0,68252.0,0.02484052]
[1771184684949,0.81963382,68269.0,68252.0,0.02484052]
[1771184685121,0.02396529,68268.0,68252.0,0.02484052]
[1771184685559,0.0240659,68268.0,68252.0,0.02484052]
[1771184686114,0.02396529,68267.0,68257.0,0.0002434]
[1771184687638,0.00010061,68268.0,68257.0,0.0002434]
[1771184687854,0.00010061,68268.0,68258.0,0.24290684]
[1771184688073,0.30496,68274.0,68260.0,0.02484052]
[1771184688277,0.30496,68274.0,68261.0,0.02484052]
[1771184688470,0.30496,68274.0,68263.0,0.02484052]
[1771184688674,0.07322265,68285.0,68264.0,0.24290684]
[1771184688812,0.30496,68281.0,68267.0,0.02484052]
[1771184689010,0.30496,68281.0,68268.0,0.02484052]
[1771184689210,0.30496,68281.0,68270.0,0.02484052]
[1771184689434,0.0938,68290.0,68260.0,0.58085859]
[1771184689607,0.07322168,68286.0,68263.0,0.24290684]
[1771184689811,0.02396529,68286.0,68266.0,0.02484052]
[1771184690034,0.02396529,68286.0,68268.0,0.02484052]
[1771184690433,0.02396529,68286.0,68269.0,0.24290684]
[1771184690601,0.02396529,68286.0,68270.0,0.24290684]
[1771184690829,0.02396529,68286.0,68271.0,0.02484052]
[1771184692658,0.29321464,68303.0,68270.0,0.24290684]
[1771184692659,0.37809157,68296.0,68274.0,0.24290684]
[1771184692863,0.37809157,68296.0,68260.0,0.00043024]
[1771184692864,0.07321573,68292.0,68276.0,0.02484052]
[1771184693062,0.02396529,68292.0,68276.0,0.02484052]
[1771184693574,0.0971806,68292.0,68276.0,0.02484052]
[1771184694193,0.24806879,68292.0,68271.0,0.02484052]
[1771184694415,0.09718221,68291.0,68273.0,0.02484052]
[1771184694737,0.02396529,68290.0,68273.0,0.02484052]
[1771184695099,0.02396529,68290.0,68267.0,0.16952]
[1771184695100,0.02396529,68290.0,68274.0,0.26774736]
[1771184695305,0.02396529,68290.0,68275.0,0.02484052]
[1771184695464,0.02396529,68301.0,68276.0,0.02484052]
[1771184695661,0.07320972,68297.0,68278.0,0.02484052]
[1771184696021,0.24806879,68296.0,68279.0,0.02484052]
[1771184696223,0.02396529,68294.0,68279.0,0.02484052]
[1771184696727,0.30504,68299.0,68281.0,0.24290684]
[1771184696931,0.02396529,68300.0,68282.0,0.02484052]
[1771184697147,0.02396529,68308.0,68286.0,0.02484052]
[1771184697349,0.0731993,68307.0,68288.0,0.02484052]
[1771184697683,0.02396529,68305.0,68288.0,0.02484052]
[1771184697994,0.02396529,68305.0,68288.0,0.02527076]
[1771184698746,0.09716378,68308.0,68290.0,0.02484052]
[1771184699089,0.07319921,68307.0,68290.0,0.02484052]
[1771184699340,0.37831755,68309.0,68288.0,0.00043024]
[1771184699341,0.02436529,68303.0,68288.0,0.00043024]
[1771184699542,0.02396529,68301.0,68288.0,0.00043024]
[1771184700155,0.02396529,68301.0,68288.0,0.02527076]
[1771184701405,0.0004,68303.0,68288.0,0.02527076]
[1771184701541,0.0004,68303.0,68290.0,0.26774736]
[1771184701911,0.0004,68303.0,68291.0,0.02484052]
[1771184702534,0.00025335,68303.0,68291.0,0.02484052]
[1771184702659,0.02396529,68300.0,68288.0,0.00043024]
[1771184702860,0.02396529,68298.0,68288.0,0.00043024]
[1771184703063,0.00025335,68303.0,68288.0,0.00043024]
[1771184703312,0.0004,68323.0,68291.0,0.24290684]
[1771184703683,0.02436529,68323.0,68304.0,0.24290684]
[1771184703843,0.02436529,68323.0,68307.0,0.02484052]
[1771184704263,0.02436529,68323.0,68301.0,0.2088]
[1771184704264,0.58042835,68320.0,68301.0,0.2088]
[1771184704465,0.02396529,68310.0,68301.0,0.2088]
[1771184704667,0.02396529,68316.0,68301.0,0.2088]
[1771184704841,0.24806879,68316.0,68301.0,0.2088]
[1771184705044,0.02396529,68314.0,68301.0,0.2088]
[1771184706109,0.02396529,68316.0,68301.0,0.2088]
[1771184706311,0.07319267,68313.0,68301.0,0.2088]
[1771184706506,0.24806879,68310.0,68299.0,0.0938]
[1771184706666,0.02396529,68309.0,68299.0,0.0938]
[1771184707441,0.02396529,68316.0,68299.0,0.0938]
[1771184707783,0.0006411,68317.0,68299.0,0.0938]
[1771184707784,0.02396529,68315.0,68300.0,0.02484052]
[1771184711192,0.0006411,68317.0,68300.0,0.02484052]
[1771184711395,0.0006411,68317.0,68303.0,0.02484052]
[1771184711598,0.0006411,68317.0,68306.0,0.24290684]
[1771184711774,0.0006411,68317.0,68299.0,0.0938]
[1771184711775,0.58082835,68330.0,68317.0,0.02484052]
[1771184711973,0.58082835,68330.0,68299.0,0.0938]
[1771184711974,0.0975403,68330.0,68308.0,0.02484052]
[1771184712274,0.0975403,68330.0,68309.0,0.02484052]
[1771184712479,0.0975403,68330.0,68304.0,0.31352]
[1771184712480,0.02396529,68319.0,68304.0,0.31352]
[1771184712680,0.24806879,68319.0,68304.0,0.31352]
[1771184712993,0.24806879,68315.0,68304.0,0.31395024]
[1771184713217,0.02396529,68314.0,68304.0,0.31395024]
[1771184713703,0.58042835,68320.0,68304.0,0.31395024]
[1771184713839,0.02271924,68319.0,68304.0,0.31395024]
[1771184714042,0.24226567,68319.0,68304.0,0.31395024]
[1771184714264,0.02271924,68318.0,68304.0,0.31395024]
[1771184714674,0.0004,68324.0,68305.0,0.0226997]
[1771184714879,0.02311924,68323.0,68305.0,0.0226997]
[1771184715097,0.07318286,68322.0,68305.0,0.0226997]
[1771184715297,0.0959021,68322.0,68305.0,0.0226997]
[1771184715494,0.02271924,68322.0,68305.0,0.0226997]
[1771184715723,0.0004,68323.0,68308.0,0.24119827]
[1771184716009,0.0004,68317.0,68310.0,0.0226997]
[1771184716811,0.26498491,68316.0,68304.0,0.31395024]
[1771184717069,0.24226567,68315.0,68304.0,0.00043024]
[1771184717289,0.02271924,68314.0,68304.0,0.00043024]
[1771184718894,0.0004,68317.0,68304.0,0.00043024]
[1771184719881,0.0004,68317.0,68304.0,0.02312994]
[1771184724161,0.02271924,68311.0,68304.0,0.00043024]
[1771184724285,0.02271924,68310.0,68304.0,0.00043024]
[1771184725467,0.02271924,68304.0,68296.0,0.0002]
[1771184725674,0.02271924,68304.0,68296.0,0.00032898]
[1771184726709,0.09591606,68309.0,68296.0,0.00032898]
[1771184727123,0.02271924,68308.0,68296.0,0.00032898]
[1771184729847,0.02271924,68316.0,68298.0,0.0226997]
[1771184730100,0.58042835,68320.0,68290.0,0.0226997]
[1771184730285,0.58042835,68320.0,68289.0,0.0002]
[1771184730286,0.60314759,68310.0,68292.0,0.0226997]
[1771184730563,0.02271924,68309.0,68292.0,0.0226997]
[1771184730914,0.02271924,68309.0,68296.0,0.0002]
[1771184734329,0.07319221,68314.0,68296.0,0.0002]
[1771184734330,0.00083079,68317.0,68296.0,0.0228997]
[1771184734527,0.0731904,68315.0,68299.0,0.24119827]
[1771184734735,0.0731904,68315.0,68300.0,0.0226997]
[1771184734858,0.09590964,68315.0,68300.0,0.0226997]
[1771184735702,0.02271924,68315.0,68300.0,0.0226997]
[1771184736111,0.57953734,68320.0,68300.0,0.0226997]
[1771184736112,0.0004,68324.0,68302.0,0.0226997]
[1771184736330,0.00052918,68323.0,68305.0,0.24119827]
[1771184736529,0.00052918,68323.0,68308.0,0.26389797]
[1771184736765,0.00052918,68323.0,68309.0,0.0226997]
[1771184737120,0.00052918,68323.0,68311.0,0.26389797]
[1771184737324,0.0004,68329.0,68312.0,0.24119827]
[1771184737571,0.0004,68338.0,68315.0,0.24119827]
[1771184737802,0.0004,68338.0,68312.0,0.00012918]
[1771184737803,0.0004,68338.0,68318.0,0.0226997]
[1771184738035,0.0004,68338.0,68322.0,0.0226997]
[1771184738230,0.0004,68338.0,68321.0,0.0226997]
[1771184738379,0.0004,68338.0,68323.0,0.0226997]
[1771184738582,0.0004,68338.0,68326.0,0.24119827]
[1771184738775,0.0004,68338.0,68328.0,0.0226997]
[1771184738977,0.0004,68338.0,68319.0,0.0938]
[1771184738978,0.0006411,68344.0,68321.0,0.24119827]
[1771184739197,0.0006411,68344.0,68324.0,0.0226997]
[1771184739502,0.0006411,68344.0,68329.0,0.24119827]
[1771184739705,0.0006411,68344.0,68332.0,0.24119827]
[1771184740023,0.0006411,68344.0,68330.0,0.3116]
[1771184740024,0.0006411,68344.0,68336.0,0.0226997]
[1771184740223,0.0004,68345.0,68338.0,0.0226997]
[1771184740370,0.0004,68345.0,68339.0,0.0226997]
[1771184740596,0.0002411,68357.0,68340.0,0.24119827]
[1771184740794,0.0002411,68357.0,68343.0,0.0226997]
[1771184741088,0.0002411,68357.0,68335.0,0.09376]
[1771184741089,0.00037018,68357.0,68344.0,0.24119827]
[1771184741297,0.00037018,68357.0,68345.0,0.0226997]
[1771184741721,0.00029418,68357.0,68345.0,0.0226997]
[1771184744106,0.24202124,68356.0,68338.0,0.24675501]
[1771184744307,0.00029418,68357.0,68336.0,0.02346619]
[1771184744308,0.0004,68342.0,68336.0,0.02346619]
[1771184745104,0.0004,68349.0,68336.0,0.02346619]
[1771184745309,0.0004,68349.0,68320.0,0.57890958]
[1771184745310,0.0004,68349.0,68338.0,0.02346619]
[1771184746579,0.00012908,68357.0,68336.0,0.24675501]
[1771184746784,0.00012908,68357.0,68342.0,0.02346619]
[1771184746981,0.00012908,68357.0,68344.0,0.02346619]
[1771184747750,0.00012908,68357.0,68346.0,0.02346619]
[1771184748706,0.00012908,68357.0,68346.0,0.24675501]
[1771184749003,0.00012908,68357.0,68347.0,0.02346619]
[1771184749206,0.00012908,68357.0,68347.0,0.2702212]
[1771184749399,0.00012908,68357.0,68348.0,0.02346619]
[1771184750204,0.57890958,68370.0,68333.0,0.09376]
[1771184750205,0.02288879,68377.0,68347.0,0.24675501]
[1771184750404,0.02288879,68377.0,68351.0,0.02346619]
[1771184750636,0.07312983,68372.0,68351.0,0.02346619]
[1771184750834,0.26491003,68369.0,68351.0,0.02346619]
[1771184751054,0.02288879,68374.0,68353.0,0.24675501]
[1771184751444,0.0002483,68378.0,68353.0,0.24675501]
[1771184751656,0.24202124,68377.0,68350.0,0.24675501]
[1771184751868,0.26491003,68368.0,68351.0,0.02346619]
[1771184752594,0.0004,68370.0,68351.0,0.02346619]
[1771184752819,0.0004,68370.0,68353.0,0.02346619]
[1771184753230,0.0004,68370.0,68354.0,0.24675501]
[1771184753395,0.0004,68370.0,68355.0,0.02346619]
[1771184753596,0.0004,68370.0,68355.0,0.24675501]
[1771184753954,0.0004,68370.0,68356.0,0.02346619]
[1771184754800,0.0004,68370.0,68359.0,0.24675501]
[1771184755006,0.0004,68370.0,68362.0,0.02346619]
[1771184755218,0.0004,68370.0,68363.0,0.02346619]
[1771184755452,0.0002483,68378.0,68363.0,0.02346619]
[1771184755808,0.0002483,68378.0,68365.0,0.2702212]
[1771184756007,0.0002483,68378.0,68366.0,0.02346619]
[1771184756191,0.0002483,68378.0,68367.0,0.02346619]
[1771184758009,0.0004,68370.0,68367.0,0.02346619]
[1771184758208,0.0004,68370.0,68363.0,0.31056]
[1771184758521,0.0004,68370.0,68364.0,0.02346619]
[1771184758728,0.0004,68370.0,68363.0,0.3037315]
[1771184758945,0.0004,68370.0,68355.0,0.02346619]
[1771184759150,0.02288879,68368.0,68355.0,0.33390619]
[1771184760517,0.0004,68370.0,68355.0,0.31044]
[1771184760518,0.24202124,68365.0,68355.0,0.31044]
[1771184760743,0.02288879,68364.0,68355.0,0.31044]
[1771184762764,0.0004,68370.0,68355.0,0.31044]
[1771184762965,0.0004,68370.0,68356.0,0.02346619]
[1771184763271,0.24202124,68369.0,68355.0,0.31044]
[1771184763459,0.26491003,68365.0,68351.0,0.31044]
[1771184764261,0.57930958,68370.0,68347.0,0.00012908]
[1771184764262,0.07313862,68364.0,68347.0,0.00012908]
[1771184764443,0.02288879,68362.0,68347.0,0.00012908]
[1771184764638,0.02288879,68360.0,68347.0,0.00012908]
[1771184764846,0.24202124,68360.0,68348.0,0.0002]
[1771184765043,0.26491003,68358.0,68348.0,0.0002]
[1771184765967,0.02288879,68357.0,68348.0,0.0002]
[1771184766265,0.02288879,68357.0,68344.0,0.31044]
[1771184766266,0.02288879,68353.0,68344.0,0.31044]
[1771184766522,0.02288879,68353.0,68341.0,0.0002]
[1771184766523,0.24202124,68351.0,68341.0,0.0002]
[1771184766756,0.02288879,68349.0,68339.0,0.09372]
[1771184768104,0.00012899,68353.0,68339.0,0.09372]
[1771184768544,0.00012899,68353.0,68340.0,0.02346619]
[1771184770614,0.00012899,68353.0,68342.0,0.24675501]
[1771184770825,0.29254502,68366.0,68342.0,0.24675501]
[1771184770826,0.02288879,68367.0,68342.0,0.02346619]
[1771184771042,0.31515705,68366.0,68345.0,0.24675501]
[1771184771241,0.07314164,68361.0,68346.0,0.02346619]
[1771184771649,0.07314096,68362.0,68346.0,0.02346619]
[1771184771860,0.09602975,68362.0,68346.0,0.02346619]
[1771184772072,0.26491003,68361.0,68346.0,0.02346619]
[1771184772273,0.33805134,68361.0,68346.0,0.02346619]
[1771184772671,0.59281318,68368.0,68342.0,0.00012899]
[1771184772672,0.07314496,68358.0,68342.0,0.00012899]
[1771184772873,0.02288879,68355.0,68342.0,0.00012899]
[1771184773689,0.02288879,68355.0,68342.0,0.02304938]
[1771184774137,0.02366991,68354.0,68342.0,0.00012899]
[1771184775264,0.60257949,68360.0,68343.0,0.02292039]
[1771184775479,0.02366991,68360.0,68343.0,0.02292039]
[1771184775676,0.02366991,68359.0,68343.0,0.02292039]
[1771184776585,0.07313678,68366.0,68343.0,0.02292039]
[1771184776753,0.30378536,68365.0,68345.0,0.23590087]
[1771184776958,0.02366991,68364.0,68346.0,0.02292039]
[1771184777155,0.23064755,68364.0,68346.0,0.02292039]
[1771184777315,0.02366991,68363.0,68346.0,0.02292039]
[1771184777737,0.09680889,68363.0,68346.0,0.02292039]
[1771184778155,0.02366991,68362.0,68346.0,0.02292039]
[1771184778550,0.30352,68365.0,68346.0,0.02292039]
[1771184778751,0.30352,68365.0,68342.0,0.00012899]
[1771184778752,0.0004,68370.0,68352.0,0.23590087]
[1771184778951,0.0004,68370.0,68353.0,0.02292039]
[1771184779305,0.07353179,68370.0,68353.0,0.02292039]
[1771184779549,0.0004,68370.0,68353.0,0.02292039]
[1771184779705,0.0004,68363.0,68353.0,0.02292039]
[1771184783640,0.0004,68363.0,68353.0,0.00829045]
[1771184784749,0.0004,68363.0,68354.0,0.23590087]
[1771184785005,0.0004,68363.0,68356.0,0.23590087]
[1771184785134,0.0004,68363.0,68357.0,0.02292039]
[1771184785330,0.0004,68370.0,68357.0,0.02292039]
[1771184785537,0.0004,68370.0,68358.0,0.02292039]
[1771184785732,0.0004,68370.0,68359.0,0.02292039]
[1771184796184,0.0006483,68378.0,68356.0,0.23590087]
[1771184796382,0.02406991,68384.0,68360.0,0.57890958]
[1771184796670,0.02406991,68384.0,68364.0,0.02292039]
[1771184796910,0.02406991,68384.0,68366.0,0.02292039]
[1771184797046,0.02406991,68384.0,68367.0,0.02292039]
[1771184797838,0.02419897,68384.0,68367.0,0.02292039]
[1771184798460,0.02419897,68384.0,68368.0,0.02292039]
[1771184798665,0.00052906,68384.0,68370.0,0.02292039]
[1771184798864,0.00052906,68384.0,68371.0,0.02292039]
[1771184799181,0.23064755,68381.0,68362.0,0.02292039]
[1771184799378,0.02366991,68380.0,68362.0,0.02292039]
[1771184800044,0.02366991,68380.0,68363.0,0.02292039]
[1771184800702,0.02366991,68380.0,68363.0,0.25882126]
[1771184800902,0.02366991,68380.0,68364.0,0.02292039]
[1771184801657,0.00052906,68384.0,68366.0,0.02292039]
[1771184801939,0.02408526,68384.0,68366.0,0.02268337]
[1771184802299,0.02428036,68384.0,68366.0,0.02268337]
[1771184802484,0.231258,68384.0,68366.0,0.02268337]
[1771184802687,0.02366991,68383.0,68366.0,0.02268337]
[1771184803370,0.02386501,68383.0,68366.0,0.02268337]
[1771184806396,0.0001951,68383.0,68366.0,0.02268337]
[1771184806594,0.0001951,68383.0,68368.0,0.23318689]
[1771184806824,0.0001951,68383.0,68369.0,0.02490861]
[1771184807179,0.0005951,68383.0,68369.0,0.02490861]
[1771184807508,0.02490128,68383.0,68369.0,0.02490861]
[1771184807861,0.0005951,68383.0,68369.0,0.02490861]
[1771184808068,0.0004,68397.0,68369.0,0.02490861]
[1771184808069,0.3013186,68416.0,68392.0,0.02490861]
[1771184808274,0.3013186,68416.0,68400.0,0.02490861]
[1771184808275,0.24037458,68415.0,68400.0,0.02490861]
[1771184808476,0.00066889,68416.0,68400.0,0.02490861]
[1771184808477,0.02430618,68414.0,68400.0,0.02490861]
[1771184808684,0.00066889,68416.0,68400.0,0.23318689]
[1771184809035,0.00066889,68416.0,68401.0,0.02490861]
[1771184809247,0.00066889,68416.0,68400.0,0.23318689]
[1771184809248,0.00066889,68416.0,68403.0,0.02490861]
[1771184809476,0.24037458,68427.0,68393.0,0.07716]
[1771184809477,0.24037458,68427.0,68407.0,0.23318689]
[1771184809683,0.24050358,68427.0,68409.0,0.02490861]
[1771184811976,0.24050358,68427.0,68409.0,0.23318689]
[1771184812200,0.24050358,68427.0,68410.0,0.02490861]
[1771184812427,0.000129,68427.0,68412.0,0.02490861]
[1771184812651,0.22112805,68433.0,68412.0,0.23318689]
[1771184812866,0.24543423,68433.0,68413.0,0.02490861]
[1771184813102,0.02430618,68432.0,68413.0,0.02490861]
[1771184813555,0.3006,68435.0,68415.0,0.02490861]
[1771184813757,0.29960338,68440.0,68412.0,0.000129]
[1771184813758,0.24037458,68451.0,68420.0,0.57841555]
[1771184813916,0.24037458,68451.0,68423.0,0.02490861]
[1771184814114,0.24037458,68449.0,68427.0,0.02490861]
[1771184814346,0.24037458,68449.0,68429.0,0.02490861]
[1771184814738,0.24037458,68449.0,68424.0,0.28172]
[1771184814739,0.0004418,68452.0,68432.0,0.23318689]
[1771184814942,0.0004418,68452.0,68433.0,0.02490861]
[1771184815138,0.0004418,68452.0,68436.0,0.23318689]
[1771184815342,0.0004418,68452.0,68437.0,0.02490861]
[1771184815785,0.0004,68441.0,68437.0,0.02490861]
[1771184815958,0.0004418,68452.0,68432.0,0.02490861]
[1771184816297,0.00057071,68452.0,68436.0,0.02490861]
[1771184816626,0.03926398,68462.0,68430.0,0.57841555]
[1771184816627,0.03926398,68462.0,68442.0,0.02490861]
[1771184816841,0.03926398,68462.0,68445.0,0.23318689]
[1771184817035,0.03926398,68462.0,68446.0,0.02490861]
[1771184817421,0.03926398,68462.0,68447.0,0.23318689]
[1771184817626,0.24037458,68461.0,68448.0,0.02490861]
[1771184818371,0.03926398,68462.0,68442.0,0.00012891]
[1771184818372,0.00164771,68455.0,68442.0,0.00012891]
[1771184818593,0.00164771,68453.0,68432.0,0.02490861]
[1771184818785,0.24037458,68450.0,68432.0,0.02490861]
[1771184819005,0.24202229,68450.0,68432.0,0.02490861]
[1771184819527,0.00164771,68447.0,68431.0,0.30728]
[1771184819642,0.24037458,68444.0,68431.0,0.30728]
[1771184819876,0.24202229,68444.0,68431.0,0.30728]
[1771184820751,0.24202229,68444.0,68428.0,0.09364]
[1771184820985,0.24037458,68451.0,68429.0,0.02490861]
[1771184821209,0.00164771,68448.0,68429.0,0.02490861]
[1771184821346,0.24202229,68447.0,68429.0,0.02490861]
[1771184822073,0.00012883,68453.0,68429.0,0.02490861]
[1771184822325,0.00012883,68453.0,68434.0,0.23318689]
[1771184822534,0.00012883,68453.0,68435.0,0.02490861]
[1771184823183,0.0004,68446.0,68435.0,0.02490861]
[1771184825106,0.24077458,68446.0,68429.0,0.02490861]
[1771184826970,0.24242229,68446.0,68429.0,0.02490861]
[1771184827630,0.24242229,68446.0,68410.0,0.23318689]
[1771184827631,0.24037458,68438.0,68410.0,0.23318689]
[1771184827848,0.24037458,68438.0,68414.0,0.23318689]
[1771184828058,0.24037458,68437.0,68417.0,0.02490861]